[Event "FIDE CB Open 2022"]
[Site "Ceske Budejovice"]
[Date "2022.07.04"]
[Round "4.9"]
[White "Simecek, Bohumil"]
[Black "Simek, Petr"]
[Result "1/2-1/2"]
[ECO "D02"]
[WhiteElo "2059"]
[BlackElo "2348"]
[Annotator "RC"]
[PlyCount "94"]
[EventDate "2022.07.01"]
[EventType "swiss"]
[EventCountry "CZE"]
[SourceTitle "playchess.com"]
[Source "ChessBase"]
[SourceQuality "1"]
[TimeControl "40/5400+30:1800+30"]

1. d4 {[%emt 0:02:07]} Nf6 {[%emt 0:00:04]} 2. Nf3 {[%emt 0:00:59]} d5 {[%emt 0:00:13]} 3. Bf4 {[%emt 0:00:18]} c5 {[%emt 0:00:20]} 4. e3 {[%emt 0:00:19]} Nc6 {[%emt 0:00:13]} 5. c3 {[%emt 0:00:16]} Nh5 {[%emt 0:00:17]} 6. Bg3 {[%emt 0:00:26]} Nxg3 {[%emt 0:04:42]} 7. hxg3 {[%emt 0:00:34]} Qb6 {[%emt 0:02:06]} 8. Qb3 {[%emt 0:00:42]} e6 {[%emt 0:00:05]} 9. Nbd2 {[%emt 0:00:49]} Bd7 {[%emt 0:00:36]} 10. Be2 {[%emt 0:06:53]} Be7 {[%emt 0:04:15]} 11. Qxb6 {[%emt 0:05:24]} axb6 {[%emt 0:00:28]} 12. a3 {[%emt 0:00:28]} O-O-O {[%emt 0:21:25]} 13. Bd3 {[%emt 0:17:48]} h5 {[%emt 0:03:57]} 14. O-O-O {[%emt 0:02:36]} Bf6 {[%emt 0:03:19]} 15. Kb1 {[%emt 0:14:46]} Kb8 {[%emt 0:01:32]} 16. Bc2 {[%emt 0:04:47]} g6 {[%emt 0:07:23]} 17. Nb3 {[%emt 0:01:02]} Be7 {[%emt 0:03:32]} 18. Nbd2 {[%emt 0:13:27]} g5 {[%emt 0:03:26]} 19. Rh2 {[%emt 0:04:10]} g4 {[%emt 0:08:08]} 20. Ne5 {[%emt 0:01:12]} Nxe5 {[%emt 0:01:52]} 21. dxe5 {[%emt 0:02:20]} Rdg8 {[%emt 0:20:02]} 22. Ne4 {[%emt 0:06:45]} Bb5 {[%emt 0:05:22]} 23. Nd6 {[%emt 0:04:49]} Bxd6 {[%emt 0:00:48]} 24. exd6 {[%emt 0:00:07]} Bc6 {[%emt 0:01:24]} 25. Rdh1 {[%emt 0:02:36]} Rg5 {[%emt 0:00:11]} 26. f4 {[%emt 0:00:24]} gxf3 {[%emt 0:00:16]} 27. gxf3 {[%emt 0:00:07]} Rxg3 {[%emt 0:02:04]} 28. Rxh5 {[%emt 0:00:19]} Rd8 {[%emt 0:04:45]} 29. Rh8 {[%emt 0:03:48]} Kc8 {[%emt 0:00:03]} 30. e4 {[%emt 0:03:27]} Rxf3 {[%emt 0:01:17]} 31. e5 {[%emt 0:00:53]} Re3 {[%emt 0:00:56]} 32. R1h5 {[%emt 0:01:02]} Rxh8 {[%emt 0:00:35]} 33. Rxh8+ {[%emt 0:00:06]} Kd7 {[%emt 0:00:02]} 34. Rh5 {[%emt 0:00:04]} Bb5 {[%emt 0:00:22]} 35. Kc1 {[%emt 0:00:26]} Re1+ {[%emt 0:01:14]} 36. Kd2 {[%emt 0:00:13]} Re2+ {[%emt 0:00:02]} 37. Kd1 {[%emt 0:01:21]} Rf2 {[%emt 0:00:05]} 38. Rg5 {[%emt 0:00:18]} d4 {[%emt 0:00:18]} 39. cxd4 {[%emt 0:01:02]} cxd4 {[%emt 0:00:05]} 40. a4 {[%emt 0:00:20]} Bc6 {[%emt 0:01:57]} 41. b4 {[%emt 0:30:50]} b5 {[%emt 0:18:49]} 42. a5 {[%emt 0:00:00]} Bd5 {[%emt 0:01:21]} 43. Rg7 {[%emt 0:00:00]} Bc4 {[%emt 0:06:35]} 44. Bg6 {[%emt 0:00:00]} Rf1+ {[%emt 0:00:35]} 45. Kd2 {[%emt 0:00:00]} Rf2+ {[%emt 0:00:08]} 46. Kd1 {[%emt 0:00:00]} Rf1+ {[%emt 0:00:13]} 47. Kd2 {[%emt 0:00:00]} Rf2+ {[%emt 0:00:04]} 1/2-1/2

[Event "FIDE CB Open 2022"]
[Site "Ceske Budejovice"]
[Date "2022.07.04"]
[Round "4.10"]
[White "Maryasin, Boris"]
[Black "Vltavsky, Vladimir"]
[Result "1-0"]
[ECO "C91"]
[WhiteElo "2260"]
[BlackElo "2106"]
[Annotator "RC"]
[PlyCount "93"]
[EventDate "2022.07.01"]
[EventType "swiss"]
[EventCountry "CZE"]
[SourceTitle "playchess.com"]
[Source "ChessBase"]
[SourceQuality "1"]
[TimeControl "40/5400+30:1800+30"]

1. e4 {[%emt 0:00:39]} e5 {[%emt 0:18:59]} 2. Nf3 {[%emt 0:00:17]} Nc6 {[%emt 0:00:05]} 3. Bb5 {[%emt 0:00:18]} a6 {[%emt 0:00:17]} 4. Ba4 {[%emt 0:00:09]} Nf6 {[%emt 0:00:08]} 5. O-O {[%emt 0:00:13]} Be7 {[%emt 0:00:16]} 6. Re1 {[%emt 0:00:28]} b5 {[%emt 0:00:19]} 7. Bb3 {[%emt 0:00:08]} d6 {[%emt 0:00:06]} 8. c3 {[%emt 0:00:16]} O-O {[%emt 0:00:25]} 9. d4 {[%emt 0:00:21]} Bg4 {[%emt 0:00:25]} 10. d5 {[%emt 0:00:14]} Na5 {[%emt 0:00:42]} 11. Bc2 {[%emt 0:00:11]} c6 {[%emt 0:00:58]} 12. h3 {[%emt 0:00:12]} Bxf3 {[%emt 0:01:21]} 13. Qxf3 {[%emt 0:00:07]} cxd5 {[%emt 0:00:09]} 14. exd5 {[%emt 0:00:06]} Nc4 {[%emt 0:00:29]} 15. Nd2 {[%emt 0:00:55]} Nb6 {[%emt 0:03:43]} 16. Nf1 {[%emt 0:00:31]} Ne8 {[%emt 0:01:37]} 17. g4 {[%emt 0:05:45]} g6 {[%emt 0:01:33]} 18. Bh6 {[%emt 0:01:21]} Ng7 {[%emt 0:00:52]} 19. Ng3 {[%emt 0:00:12]} Bg5 {[%emt 0:00:39]} 20. Bxg5 {[%emt 0:00:48]} Qxg5 {[%emt 0:00:06]} 21. Ne4 {[%emt 0:00:19]} Qe7 {[%emt 0:01:30]} 22. Nf6+ {[%emt 0:04:57]} Kh8 {[%emt 0:00:38]} 23. a4 {[%emt 0:03:08]} Nd7 {[%emt 0:12:07]} 24. Nxd7 {[%emt 0:04:24]} Qxd7 {[%emt 0:00:10]} 25. axb5 {[%emt 0:00:47]} axb5 {[%emt 0:00:11]} 26. Qf6 {[%emt 0:00:35]} Kg8 {[%emt 0:01:54]} 27. Bd3 {[%emt 0:06:16]} Ne8 {[%emt 0:00:54]} 28. Qf3 {[%emt 0:00:50]} Nc7 {[%emt 0:00:29]} 29. b4 {[%emt 0:01:44]} f5 {[%emt 0:09:15]} 30. Rxa8 {[%emt 0:07:16]} Nxa8 {[%emt 0:00:44]} 31. gxf5 {[%emt 0:06:58]} gxf5 {[%emt 0:00:14]} 32. Kh2 {[%emt 0:00:23]} Kh8 {[%emt 0:00:36]} 33. Rg1 {[%emt 0:01:07]} Nc7 {[%emt 0:01:37]} 34. Rg5 {[%emt 0:00:30]} Qe7 {[%emt 0:04:05]} 35. Rxf5 {[%emt 0:01:27]} Rxf5 {[%emt 0:00:05]} 36. Qxf5 {[%emt 0:03:39]} Nxd5 {[%emt 0:01:27]} 37. Bxb5 {[%emt 0:00:10]} Nf4 {[%emt 0:01:31]} 38. Bc6 {[%emt 0:07:41]} Kg7 {[%emt 0:03:37]} 39. c4 {[%emt 0:06:02]} Qa7 {[%emt 0:02:40]} 40. Qd7+ {[%emt 0:00:37]} Qxd7 {[%emt 0:00:05]} 41. Bxd7 {[%emt 0:30:06]} Kf7 {[%emt 0:30:42]} 42. Bf5 {[%emt 0:00:59]} h6 {[%emt 0:05:12]} 43. b5 {[%emt 0:00:10]} Ke7 {[%emt 0:00:11]} 44. b6 {[%emt 0:00:17]} Kd8 {[%emt 0:00:03]} 45. Kg3 {[%emt 0:00:25]} Ne2+ {[%emt 0:00:06]} 46. Kg4 {[%emt 0:01:01]} Nd4 {[%emt 0:00:15]} 47. Be4 {[%emt 0:00:30]} 1-0

[Event "FIDE CB Open 2022"]
[Site "Ceske Budejovice"]
[Date "2022.07.04"]
[Round "4.11"]
[White "Palchuk, Andrii"]
[Black "Sykora, Ondrej"]
[Result "1/2-1/2"]
[ECO "D43"]
[WhiteElo "2248"]
[BlackElo "2099"]
[Annotator "RC"]
[PlyCount "49"]
[EventDate "2022.07.01"]
[EventType "swiss"]
[EventCountry "CZE"]
[SourceTitle "playchess.com"]
[Source "ChessBase"]
[SourceQuality "1"]
[TimeControl "40/5400+30:1800+30"]

1. d4 {[%emt 0:00:11]} d5 {[%emt 0:00:06]} 2. Nf3 {[%emt 0:00:13]} Nf6 {[%emt 0:00:28]} 3. c4 {[%emt 0:00:26]} c6 {[%emt 0:00:54]} 4. Qb3 {[%emt 0:00:08]} e6 {[%emt 0:03:51]} 5. Bg5 {[%emt 0:01:39]} Nbd7 {[%emt 0:00:43]} 6. Nc3 {[%emt 0:00:42]} Qa5 {[%emt 0:02:15]} 7. Bd2 {[%emt 0:07:08]} Qb6 {[%emt 0:17:24]} 8. Qc2 {[%emt 0:14:29]} Be7 {[%emt 0:03:00]} 9. e3 {[%emt 0:01:12]} O-O {[%emt 0:00:25]} 10. Rc1 {[%emt 0:05:36]} h6 {[%emt 0:12:35]} 11. Be2 {[%emt 0:03:41]} dxc4 {[%emt 0:00:24]} 12. Bxc4 {[%emt 0:00:22]} Bd6 {[%emt 0:00:09]} 13. O-O {[%emt 0:01:48]} e5 {[%emt 0:01:23]} 14. Bb3 {[%emt 0:03:34]} Re8 {[%emt 0:05:24]} 15. Kh1 {[%emt 0:07:41]} exd4 {[%emt 0:08:46]} 16. Nxd4 {[%emt 0:04:57]} Nf8 {[%emt 0:04:49]} 17. f4 {[%emt 0:00:29]} Ne6 {[%emt 0:02:10]} 18. Nf5 {[%emt 0:01:16]} Bf8 {[%emt 0:00:07]} 19. Rf3 {[%emt 0:12:37]} Qc7 {[%emt 0:11:38]} 20. Ne2 {[%emt 0:12:22]} Rd8 {[%emt 0:11:15]} 21. Bc3 {[%emt 0:10:27]} Ne8 {[%emt 0:00:48]} 22. Rg3 {[%emt 0:01:55]} g6 {[%emt 0:00:39]} 23. Nh4 {[%emt 0:04:00]} N6g7 {[%emt 0:07:57]} 24. Rxg6 {[%emt 0:01:43]} Qe7 {[%emt 0:00:34]} 25. Rxh6 {[%emt 0:00:24]} 1/2-1/2

[Event "FIDE CB Open 2022"]
[Site "Ceske Budejovice"]
[Date "2022.07.04"]
[Round "4.13"]
[White "Matras, Ondrej"]
[Black "Sudrich, Radek"]
[Result "1-0"]
[ECO "D61"]
[WhiteElo "2229"]
[BlackElo "2049"]
[Annotator "RC"]
[PlyCount "49"]
[EventDate "2022.07.01"]
[EventType "swiss"]
[EventCountry "CZE"]
[SourceTitle "playchess.com"]
[Source "ChessBase"]
[SourceQuality "1"]
[TimeControl "40/5400+30:1800+30"]

1. d4 {[%emt 0:00:05]} d5 {[%emt 0:00:10]} 2. c4 {[%emt 0:00:02]} e6 {[%emt 0:00:09]} 3. Nc3 {[%emt 0:00:02]} Nf6 {[%emt 0:00:12]} 4. Nf3 {[%emt 0:00:03]} c6 {[%emt 0:00:13]} 5. Bg5 {[%emt 0:00:35]} Nbd7 {[%emt 0:00:10]} 6. e3 {[%emt 0:02:55]} Be7 {[%emt 0:02:09]} 7. Qc2 {[%emt 0:01:29]} O-O {[%emt 0:00:37]} 8. Rd1 {[%emt 0:02:06]} h6 {[%emt 0:02:45]} 9. Bh4 {[%emt 0:00:30]} Re8 {[%emt 0:04:48]} 10. Bd3 {[%emt 0:09:13]} dxc4 {[%emt 0:06:43]} 11. Bxc4 {[%emt 0:00:03]} b5 {[%emt 0:00:53]} 12. Bd3 {[%emt 0:01:09]} Bb7 {[%emt 0:01:14]} 13. O-O {[%emt 0:00:33]} a6 {[%emt 0:00:59]} 14. Qe2 {[%emt 0:08:01]} Qb6 {[%emt 0:03:36]} 15. e4 {[%emt 0:05:31]} Rad8 {[%emt 0:07:42]} 16. e5 {[%emt 0:01:49]} Nh7 {[%emt 0:00:34]} 17. Bxe7 {[%emt 0:02:38]} Rxe7 {[%emt 0:00:03]} 18. Ne4 {[%emt 0:04:14]} f5 {[%emt 0:06:27]} 19. exf6 {[%emt 0:19:44]} Nhxf6 {[%emt 0:03:21]} 20. Nc5 {[%emt 0:07:55]} Rf8 {[%emt 0:04:10]} 21. Nh4 {[%emt 0:05:01]} Nxc5 {[%emt 0:02:18]} 22. dxc5 {[%emt 0:00:04]} Qxc5 {[%emt 0:00:10]} 23. Ng6 {[%emt 0:00:15]} Rfe8 {[%emt 0:00:08]} 24. Nxe7+ {[%emt 0:01:03]} Qxe7 {[%emt 0:00:09]} 25. Bg6 {[%emt 0:01:01]} 1-0

[Event "FIDE CB Open 2022"]
[Site "Ceske Budejovice"]
[Date "2022.07.04"]
[Round "4.14"]
[White "Kovalskyi, Roman"]
[Black "Kula, Dominik"]
[Result "0-1"]
[ECO "B90"]
[WhiteElo "2056"]
[BlackElo "2229"]
[Annotator "RC"]
[PlyCount "90"]
[EventDate "2022.07.01"]
[EventType "swiss"]
[EventCountry "CZE"]
[SourceTitle "playchess.com"]
[Source "ChessBase"]
[SourceQuality "1"]
[TimeControl "40/5400+30:1800+30"]

1. e4 {[%emt 0:00:04]} c5 {[%emt 0:00:07]} 2. Nf3 {[%emt 0:00:06]} d6 {[%emt 0:00:28]} 3. d4 {[%emt 0:00:12]} cxd4 {[%emt 0:00:04]} 4. Nxd4 {[%emt 0:00:06]} Nf6 {[%emt 0:00:03]} 5. Nc3 {[%emt 0:00:08]} a6 {[%emt 0:00:08]} 6. Be3 {[%emt 0:00:30]} e5 {[%emt 0:01:48]} 7. Nb3 {[%emt 0:03:05]} Be6 {[%emt 0:00:07]} 8. f3 {[%emt 0:00:34]} h5 {[%emt 0:00:22]} 9. a4 {[%emt 0:01:04]} Nbd7 {[%emt 0:05:27]} 10. Qd2 {[%emt 0:02:02]} Be7 {[%emt 0:02:26]} 11. Be2 {[%emt 0:01:40]} Nb6 {[%emt 0:02:45]} 12. a5 {[%emt 0:08:13]} Nc4 {[%emt 0:01:12]} 13. Bxc4 {[%emt 0:00:05]} Bxc4 {[%emt 0:00:03]} 14. Bb6 {[%emt 0:00:42]} Qd7 {[%emt 0:02:42]} 15. O-O-O {[%emt 0:03:06]} Rc8 {[%emt 0:05:05]} 16. Kb1 {[%emt 0:03:51]} Qc6 {[%emt 0:11:50]} 17. Rhe1 {[%emt 0:18:25]} Nd7 {[%emt 0:03:38]} 18. Nd5 {[%emt 0:03:26]} Bxd5 {[%emt 0:01:27]} 19. exd5 {[%emt 0:01:11]} Qb5 {[%emt 0:00:51]} 20. Bf2 {[%emt 0:04:00]} Rc4 {[%emt 0:09:00]} 21. Qd3 {[%emt 0:09:53]} O-O {[%emt 0:03:32]} 22. Re4 {[%emt 0:27:16]} Rfc8 {[%emt 0:02:08]} 23. Rxc4 {[%emt 0:00:08]} Qxc4 {[%emt 0:01:34]} 24. Qf5 {[%emt 0:06:50]} Rc7 {[%emt 0:03:32]} 25. Bb6 {[%emt 0:01:50]} g6 {[%emt 0:00:27]} 26. Qd3 {[%emt 0:00:23]} Rc8 {[%emt 0:01:48]} 27. Qxc4 {[%emt 0:02:38]} Rxc4 {[%emt 0:00:03]} 28. c3 {[%emt 0:00:07]} f5 {[%emt 0:08:01]} 29. Kc2 {[%emt 0:00:23]} Ra4 {[%emt 0:04:34]} 30. Bc7 {[%emt 0:01:30]} Kf7 {[%emt 0:01:13]} 31. Nd2 {[%emt 0:00:28]} Rh4 {[%emt 0:02:47]} 32. h3 {[%emt 0:00:01]} g5 {[%emt 0:03:04]} 33. Rf1 {[%emt 0:01:41]} Kg6 {[%emt 0:01:34]} 34. b3 {[%emt 0:00:19]} g4 {[%emt 0:07:40]} 35. Bb6 {[%emt 0:01:07]} gxf3 {[%emt 0:04:19]} 36. Nxf3 {[%emt 0:00:10]} Re4 {[%emt 0:00:45]} 37. Nd2 {[%emt 0:00:34]} Nxb6 {[%emt 0:02:08]} 38. axb6 {[%emt 0:01:05]} Re2 {[%emt 0:00:02]} 39. Kd3 {[%emt 0:00:36]} Rxg2 {[%emt 0:00:20]} 40. c4 {[%emt 0:00:29]} e4+ {[%emt 0:01:52]} 41. Nxe4 {[%emt 0:02:15]} fxe4+ {[%emt 0:00:36]} 42. Kxe4 {[%emt 0:00:06]} Rg3 {[%emt 0:01:29]} 43. b4 {[%emt 0:00:37]} Rb3 {[%emt 0:00:51]} 44. Rg1+ {[%emt 0:00:42]} Kf7 {[%emt 0:00:06]} 45. Rf1+ {[%emt 0:00:05]} Bf6 {[%emt 0:00:10]} 0-1

[Event "FIDE CB Open 2022"]
[Site "Ceske Budejovice"]
[Date "2022.07.04"]
[Round "4.15"]
[White "Lacina, Adolf"]
[Black "Hurtik, Matej"]
[Result "1-0"]
[ECO "B01"]
[WhiteElo "2225"]
[BlackElo "2018"]
[Annotator "RC"]
[PlyCount "69"]
[EventDate "2022.07.01"]
[EventType "swiss"]
[EventCountry "CZE"]
[SourceTitle "playchess.com"]
[Source "ChessBase"]
[SourceQuality "1"]
[TimeControl "40/5400+30:1800+30"]

1. e4 {[%emt 0:00:13]} d5 {[%emt 0:00:18]} 2. exd5 {[%emt 0:00:09]} Qxd5 {[%emt 0:00:10]} 3. Nc3 {[%emt 0:00:11]} Qa5 {[%emt 0:00:06]} 4. d4 {[%emt 0:00:22]} Nf6 {[%emt 0:00:18]} 5. Nf3 {[%emt 0:01:28]} Bg4 {[%emt 0:01:08]} 6. Bd2 {[%emt 0:00:47]} c6 {[%emt 0:08:35]} 7. Ne4 {[%emt 0:02:46]} Qc7 {[%emt 0:00:06]} 8. Nxf6+ {[%emt 0:00:39]} gxf6 {[%emt 0:00:33]} 9. Bd3 {[%emt 0:05:32]} Nd7 {[%emt 0:01:44]} 10. h3 {[%emt 0:04:04]} Bh5 {[%emt 0:01:51]} 11. Qe2 {[%emt 0:01:41]} O-O-O {[%emt 0:02:17]} 12. O-O-O {[%emt 0:00:51]} Nb6 {[%emt 0:03:19]} 13. Ba5 {[%emt 0:05:14]} Rd5 {[%emt 0:09:13]} 14. Bb4 {[%emt 0:09:29]} Bh6+ {[%emt 0:20:15]} 15. Kb1 {[%emt 0:01:38]} e6 {[%emt 0:01:16]} 16. g4 {[%emt 0:05:36]} Bg6 {[%emt 0:00:06]} 17. c4 {[%emt 0:00:29]} Rd7 {[%emt 0:13:34]} 18. h4 {[%emt 0:07:32]} Bf4 {[%emt 0:03:43]} 19. Bxg6 {[%emt 0:03:40]} hxg6 {[%emt 0:00:17]} 20. h5 {[%emt 0:00:13]} gxh5 {[%emt 0:05:19]} 21. Rxh5 {[%emt 0:03:39]} Rg8 {[%emt 0:08:32]} 22. Ba5 {[%emt 0:01:51]} Qb8 {[%emt 0:03:24]} 23. Rh7 {[%emt 0:02:02]} Qd6 {[%emt 0:03:18]} 24. c5 {[%emt 0:03:41]} Qd5 {[%emt 0:00:06]} 25. cxb6 {[%emt 0:01:59]} Qxa5 {[%emt 0:00:20]} 26. Rxf7 {[%emt 0:01:34]} axb6 {[%emt 0:10:25]} 27. Rxf6 {[%emt 0:07:58]} Rxg4 {[%emt 0:03:13]} 28. Qxe6 {[%emt 0:00:33]} Qh5 {[%emt 0:00:14]} 29. Rf5 {[%emt 0:13:12]} Qh7 {[%emt 0:00:20]} 30. Ka1 {[%emt 0:00:10]} Bd6 {[%emt 0:00:54]} 31. Ne5 {[%emt 0:01:33]} Bxe5 {[%emt 0:00:09]} 32. Rf8+ {[%emt 0:00:14]} Kc7 {[%emt 0:00:02]} 33. Qxe5+ {[%emt 0:00:10]} Rd6 {[%emt 0:00:09]} 34. Qe8 {[%emt 0:01:05]} Rdxd4 {[%emt 0:01:24]} 35. Qe5+ {[%emt 0:01:27]} 1-0

[Event "FIDE CB Open 2022"]
[Site "Ceske Budejovice"]
[Date "2022.07.04"]
[Round "4.16"]
[White "Mostbauer, Maximilian"]
[Black "Rosol, Alexander"]
[Result "1-0"]
[ECO "E62"]
[WhiteElo "2192"]
[BlackElo "2001"]
[Annotator "RC"]
[PlyCount "57"]
[EventDate "2022.07.01"]
[EventType "swiss"]
[EventCountry "CZE"]
[SourceTitle "playchess.com"]
[Source "ChessBase"]
[SourceQuality "1"]
[TimeControl "40/5400+30:1800+30"]

1. Nf3 {[%emt 0:00:07]} Nf6 {[%emt 0:00:07]} 2. g3 {[%emt 0:00:16]} g6 {[%emt 0:00:10]} 3. Bg2 {[%emt 0:00:05]} Bg7 {[%emt 0:00:04]} 4. O-O {[%emt 0:00:06]} O-O {[%emt 0:00:04]} 5. d4 {[%emt 0:01:09]} d6 {[%emt 0:00:28]} 6. c4 {[%emt 0:00:59]} c6 {[%emt 0:00:18]} 7. Nc3 {[%emt 0:00:10]} Qa5 {[%emt 0:00:16]} 8. Bd2 {[%emt 0:00:04]} Qa6 {[%emt 0:04:31]} 9. b3 {[%emt 0:02:42]} b5 {[%emt 0:06:17]} 10. cxb5 {[%emt 0:10:47]} cxb5 {[%emt 0:00:08]} 11. a4 {[%emt 0:08:08]} bxa4 {[%emt 0:11:50]} 12. Rxa4 {[%emt 0:19:53]} Qb6 {[%emt 0:01:51]} 13. Ne5 {[%emt 0:11:43]} Bb7 {[%emt 0:01:44]} 14. Nc4 {[%emt 0:02:18]} Qc7 {[%emt 0:00:20]} 15. e4 {[%emt 0:00:13]} d5 {[%emt 0:21:10]} 16. exd5 {[%emt 0:01:47]} Qd7 {[%emt 0:05:17]} 17. Ne5 {[%emt 0:03:06]} Qd8 {[%emt 0:02:34]} 18. Nc6 {[%emt 0:02:15]} Qd7 {[%emt 0:00:26]} 19. Ne5 {[%emt 0:04:06]} Qd8 {[%emt 0:00:09]} 20. d6 {[%emt 0:01:35]} Bxg2 {[%emt 0:00:11]} 21. dxe7 {[%emt 0:00:06]} Qxe7 {[%emt 0:00:11]} 22. Kxg2 {[%emt 0:00:04]} Nfd7 {[%emt 0:04:46]} 23. Qf3 {[%emt 0:15:20]} Nxe5 {[%emt 0:00:38]} 24. dxe5 {[%emt 0:00:03]} Nd7 {[%emt 0:01:19]} 25. Nd5 {[%emt 0:02:31]} Qxe5 {[%emt 0:06:12]} 26. Bc3 {[%emt 0:03:02]} Qd6 {[%emt 0:00:46]} 27. Bb4 {[%emt 0:01:34]} Nc5 {[%emt 0:01:42]} 28. Rc1 {[%emt 0:01:53]} Bd4 {[%emt 0:12:41]} 29. Rc4 {[%emt 0:00:50]} 1-0

[Event "FIDE CB Open 2022"]
[Site "Ceske Budejovice"]
[Date "2022.07.04"]
[Round "4.17"]
[White "Puncochar, Jiri"]
[Black "Borkovec, Milan"]
[Result "1-0"]
[ECO "C92"]
[WhiteElo "2020"]
[BlackElo "2188"]
[Annotator "RC"]
[PlyCount "65"]
[EventDate "2022.07.01"]
[EventType "swiss"]
[EventCountry "CZE"]
[SourceTitle "playchess.com"]
[Source "ChessBase"]
[SourceQuality "1"]
[TimeControl "40/5400+30:1800+30"]

1. e4 {[%emt 0:00:10]} e5 {[%emt 0:00:12]} 2. Nf3 {[%emt 0:00:13]} Nc6 {[%emt 0:00:09]} 3. Bb5 {[%emt 0:00:04]} a6 {[%emt 0:00:10]} 4. Ba4 {[%emt 0:00:05]} Nf6 {[%emt 0:00:09]} 5. O-O {[%emt 0:00:17]} Be7 {[%emt 0:00:09]} 6. Re1 {[%emt 0:00:27]} b5 {[%emt 0:00:46]} 7. Bb3 {[%emt 0:00:05]} d6 {[%emt 0:00:09]} 8. c3 {[%emt 0:00:29]} O-O {[%emt 0:00:09]} 9. h3 {[%emt 0:00:51]} Bb7 {[%emt 0:00:18]} 10. d4 {[%emt 0:02:31]} Re8 {[%emt 0:00:26]} 11. Nbd2 {[%emt 0:02:43]} Bf8 {[%emt 0:10:49]} 12. d5 {[%emt 0:02:35]} Na5 {[%emt 0:10:22]} 13. Bc2 {[%emt 0:00:40]} c6 {[%emt 0:00:05]} 14. dxc6 {[%emt 0:02:20]} Bxc6 {[%emt 0:01:12]} 15. Nf1 {[%emt 0:05:17]} h6 {[%emt 0:06:11]} 16. Ng3 {[%emt 0:05:39]} Qc7 {[%emt 0:07:57]} 17. Nh2 {[%emt 0:04:17]} Rad8 {[%emt 0:16:29]} 18. Ng4 {[%emt 0:01:14]} Nxg4 {[%emt 0:02:27]} 19. Qxg4 {[%emt 0:00:39]} Re6 {[%emt 0:00:12]} 20. Nf5 {[%emt 0:04:28]} Kh8 {[%emt 0:01:14]} 21. Ne3 {[%emt 0:13:15]} Nc4 {[%emt 0:07:28]} 22. Nd5 {[%emt 0:01:51]} Qb7 {[%emt 0:00:11]} 23. Rd1 {[%emt 0:07:02]} Rde8 {[%emt 0:15:06]} 24. a4 {[%emt 0:09:20]} Nb6 {[%emt 0:14:55]} 25. axb5 {[%emt 0:04:42]} Bxb5 {[%emt 0:00:13]} 26. Nxb6 {[%emt 0:03:51]} Qxb6 {[%emt 0:00:02]} 27. Bd3 {[%emt 0:04:28]} Be7 {[%emt 0:01:43]} 28. Be3 {[%emt 0:02:14]} Qb7 {[%emt 0:00:07]} 29. Qe2 {[%emt 0:05:17]} Qxe4 {[%emt 0:01:11]} 30. c4 {[%emt 0:01:16]} Bxc4 {[%emt 0:00:52]} 31. Bxc4 {[%emt 0:00:07]} Rg6 {[%emt 0:00:30]} 32. f3 {[%emt 0:01:47]} Qf5 {[%emt 0:00:00]} 33. Bd3 {[%emt 0:00:17]} 1-0

[Event "FIDE CB Open 2022"]
[Site "Ceske Budejovice"]
[Date "2022.07.04"]
[Round "4.18"]
[White "Vilimek, Vit"]
[Black "Vybiral, Zdenek"]
[Result "0-1"]
[ECO "A36"]
[WhiteElo "1996"]
[BlackElo "2143"]
[Annotator "RC"]
[PlyCount "106"]
[EventDate "2022.07.01"]
[EventType "swiss"]
[EventCountry "CZE"]
[SourceTitle "playchess.com"]
[Source "ChessBase"]
[SourceQuality "1"]
[TimeControl "40/5400+30:1800+30"]

1. c4 {[%emt 0:00:04]} g6 {[%emt 0:01:55]} 2. Nc3 {[%emt 0:00:09]} Bg7 {[%emt 0:00:06]} 3. g3 {[%emt 0:00:08]} c5 {[%emt 0:01:17]} 4. Bg2 {[%emt 0:00:06]} Nc6 {[%emt 0:00:07]} 5. e3 {[%emt 0:00:34]} e6 {[%emt 0:05:19]} 6. Nge2 {[%emt 0:00:02]} Nge7 {[%emt 0:00:04]} 7. Rb1 {[%emt 0:04:21]} Rb8 {[%emt 0:06:40]} 8. a3 {[%emt 0:02:24]} b6 {[%emt 0:12:52]} 9. O-O {[%emt 0:03:16]} Bb7 {[%emt 0:01:11]} 10. b4 {[%emt 0:07:33]} Nf5 {[%emt 0:02:41]} 11. bxc5 {[%emt 0:05:04]} bxc5 {[%emt 0:00:15]} 12. Ne4 {[%emt 0:02:54]} Ba6 {[%emt 0:08:07]} 13. Rxb8 {[%emt 0:03:16]} Nxb8 {[%emt 0:00:12]} 14. Nxc5 {[%emt 0:19:53]} Bxc4 {[%emt 0:00:37]} 15. d3 {[%emt 0:12:32]} Bb5 {[%emt 0:00:22]} 16. a4 {[%emt 0:09:51]} Bc6 {[%emt 0:00:11]} 17. e4 {[%emt 0:08:14]} Nd4 {[%emt 0:01:37]} 18. Be3 {[%emt 0:07:47]} Nxe2+ {[%emt 0:03:17]} 19. Qxe2 {[%emt 0:00:02]} O-O {[%emt 0:00:34]} 20. Nb3 {[%emt 0:09:21]} Bxa4 {[%emt 0:04:35]} 21. Qa2 {[%emt 0:00:31]} Bb5 {[%emt 0:14:11]} 22. Rd1 {[%emt 0:01:30]} Nc6 {[%emt 0:01:09]} 23. d4 {[%emt 0:01:42]} d5 {[%emt 0:08:52]} 24. e5 {[%emt 0:00:39]} Bc4 {[%emt 0:00:16]} 25. Qa4 {[%emt 0:00:25]} Qb6 {[%emt 0:08:48]} 26. Nc5 {[%emt 0:00:35]} Rd8 {[%emt 0:00:11]} 27. h4 {[%emt 0:00:31]} h5 {[%emt 0:00:55]} 28. Bg5 {[%emt 0:00:30]} Rc8 {[%emt 0:01:27]} 29. Nd7 {[%emt 0:00:31]} Qa6 {[%emt 0:03:47]} 30. Qxa6 {[%emt 0:00:27]} Bxa6 {[%emt 0:00:01]} 31. Be3 {[%emt 0:00:32]} Bb5 {[%emt 0:00:53]} 32. Rb1 {[%emt 0:00:23]} a6 {[%emt 0:08:38]} 33. f4 {[%emt 0:00:19]} Nxd4 {[%emt 0:01:00]} 34. Bxd4 {[%emt 0:00:48]} Bxd7 {[%emt 0:00:01]} 35. Bf1 {[%emt 0:00:27]} Ra8 {[%emt 0:02:14]} 36. Rb7 {[%emt 0:00:30]} Ba4 {[%emt 0:01:45]} 37. Rb4 {[%emt 0:00:30]} Bb5 {[%emt 0:00:48]} 38. Bxb5 {[%emt 0:00:14]} Rb8 {[%emt 0:00:10]} 39. Kf2 {[%emt 0:00:39]} Bf8 {[%emt 0:00:33]} 40. Rb2 {[%emt 0:00:32]} axb5 {[%emt 0:00:48]} 41. Ke2 {[%emt 0:30:16]} b4 {[%emt 0:31:14]} 42. Bc3 {[%emt 0:00:00]} Bc5 {[%emt 0:00:00]} 43. Be1 {[%emt 0:00:00]} Kf8 {[%emt 0:00:00]} 44. Kd3 {[%emt 0:00:00]} Ke7 {[%emt 0:00:00]} 45. Kc2 {[%emt 0:00:00]} Kd7 {[%emt 0:00:00]} 46. Rb1 {[%emt 0:00:00]} Kc6 {[%emt 0:00:00]} 47. Ra1 {[%emt 0:00:00]} b3+ {[%emt 0:00:00]} 48. Kd3 {[%emt 0:00:00]} b2 {[%emt 0:00:00]} 49. Rb1 {[%emt 0:00:00]} Ba3 {[%emt 0:00:00]} 50. Bc3 {[%emt 0:00:00]} Kc5 {[%emt 0:00:00]} 51. Bd4+ {[%emt 0:00:00]} Kb4 {[%emt 0:00:00]} 52. Bxb2 {[%emt 0:00:00]} Ka4 {[%emt 0:00:00]} 53. Rc1 {[%emt 0:00:00]} Rb3+ {[%emt 0:00:00]} 0-1